fUSD/lending_fUSD_20250511
["ID","MTS","AMOUNT","RATE_DAILY","PERIOD"]
[360740901,1746960649632,-1913.92,0.00019883,2]
[360740902,1746960649641,-1913.92,0.00019883,2]
[360740903,1746960649651,-400.0,0.00019883,2]
[360740904,1746960649660,-400.0,0.00019883,2]
[360740905,1746960649669,-504.01,0.00019883,2]
[360740906,1746960649678,-529.33216654,0.00019883,2]
[360740907,1746960649687,-2484.54,0.00019883,2]
[360740908,1746960649697,-2484.54,0.00019883,2]
[360740909,1746960649706,-2484.54,0.00019883,2]
[360740910,1746960649716,-400.0,0.00019883,2]
[360740911,1746960649726,-400.0,0.00019883,2]
[360740912,1746960649735,-1360.99,0.00019883,2]
[360740913,1746960649744,-1360.99,0.00019883,2]
[360740914,1746960649754,-1360.99,0.00019883,2]
[360740915,1746960649763,-825.24,0.00019883,2]
[360740916,1746960649772,-400.0,0.00019883,2]
[360740917,1746960649782,-825.24,0.00019883,2]
[360740918,1746960649791,-825.24,0.00019883,2]
[360740919,1746960649800,-400.0,0.00019883,2]
[360740920,1746960649810,-397.85162297,0.00019883,2]
[360740921,1746960649819,-2489.8,0.00019883,2]
[360740922,1746960649828,-2489.8,0.00019883,2]
[360740923,1746960649837,-2489.8,0.00019883,2]
[360740924,1746960649847,-400.0,0.00019883,2]
[360740925,1746960649856,-400.0,0.00019883,2]
[360740926,1746960649866,-500.0,0.00019883,2]
[360740927,1746960649875,-506.74,0.00019883,2]
[360740928,1746960649884,-933.8,0.00019883,2]
[360740929,1746960649894,-933.8,0.00019883,2]
[360740930,1746960649903,-933.8,0.00019883,2]
[360740931,1746960649912,-196.37928069,0.00019883,2]
[360740932,1746960649921,-2695.04,0.00019883,2]
[360740933,1746960649931,-2695.04,0.00019883,2]
[360740934,1746960649940,-400.0,0.00019883,2]
[360740935,1746960649951,-305.91356188,0.00019883,2]
[360740936,1746960728928,158.987829,0.0003,35]
[360740939,1746960856246,50000.0,0.0003,30]
[360740940,1746960866870,3534.92805256,0.00030137,120]
[360740941,1746960878339,150.0,0.000185,5]
[360740942,1746960938525,169.7,0.00020575,30]
[360740944,1746961196090,239.56,0.000172,2]
[360740946,1746961240287,901.79,0.00030137,120]
[360740947,1746961246539,718.68,0.00016915,2]
[360740948,1746961271639,123669.04141337,0.00030137,120]
[360740949,1746961272310,151.97,0.00013699,2]
[360740950,1746961323815,200000.0,0.0003,30]
[360740951,1746961325262,901.79,0.00030137,120]
[360740952,1746961328226,50000.0,0.0003,30]
[360740953,1746961372567,328090.28867244,0.0003,30]
[360740954,1746961417069,20000.0,0.00029,120]
[360740955,1746961423865,250.0,0.00017,2]
[360740956,1746961455257,26852.33,0.00028,120]
[360740958,1746961636125,-948.869535,0.00018352,2]
[360740959,1746961636147,-102.00651391,0.00018444,2]
[360740960,1746961651113,-150.42348609,0.00018444,2]
[360740961,1746961651132,-181.48736186,0.00018731,2]
[360740962,1746961655389,1154.56,0.00025321,120]
[360740963,1746961655601,1154.56,0.00027623,120]
[360740964,1746961682531,10000.0,0.00025,90]
[360740965,1746961687437,2636.17421603,0.00028,120]
[360740966,1746961701017,152.0,0.00014721,2]
[360740967,1746961720502,5320.0,0.00028,120]
[360740977,1746961780425,1074.0,0.00028,120]
[360740979,1746961822348,6154.1369,0.00028,120]
[360740983,1746961831564,-151.0,0.00018098,2]
[360740984,1746961831575,-151.0,0.00018103,2]
[360740985,1746961831584,-151.0,0.00018105,2]
[360740986,1746961831593,-151.0,0.00018108,2]
[360740987,1746961831604,-1042.4297316,0.00018415,2]
[360740988,1746961831913,-112.1302684,0.00018415,2]
[360740989,1746961831923,-250.0,0.00018809,2]
[360740990,1746961831932,-200.0,0.00018809,2]
[360740991,1746961831942,-151.0,0.00018829,2]
[360740992,1746961831951,-388.97,0.0001883,2]
[360740993,1746961831961,-388.97,0.00018835,2]
[360740994,1746961831970,-1200.0,0.00018838,2]
[360740995,1746961831980,-300.0,0.00018839,2]
[360740996,1746961831989,-300.0,0.00018839,2]
[360740997,1746961831999,-388.97,0.0001884,2]
[360740998,1746961832009,-15326.96,0.0001884,2]
[360740999,1746961832019,-200.0,0.00018841,2]
[360741000,1746961832028,-388.97,0.00018845,2]
[360741001,1746961832037,-388.97,0.0001885,2]
[360741002,1746961832046,-388.97,0.00018855,2]
[360741004,1746961832055,-388.97,0.0001886,2]
[360741006,1746961832065,-388.97,0.00018865,2]
[360741008,1746961832075,-388.97,0.0001887,2]
[360741009,1746961832084,-388.97,0.00018875,2]
[360741010,1746961832093,-388.97,0.00018879,2]
[360741011,1746961832103,-388.97,0.00018884,2]
[360741012,1746961832113,-1000.0,0.00018887,2]
[360741013,1746961832122,-388.97,0.00018889,2]
[360741014,1746961832131,-207.4,0.00018893,2]
[360741016,1746961832141,-668.65185757,0.00018893,2]
[360741017,1746961832150,-388.97,0.00018894,2]
[360741019,1746961832159,-388.97,0.00018899,2]
[360741022,1746961832169,-388.97,0.00018904,2]
[360741024,1746961832179,-388.97,0.00018909,2]
[360741026,1746961832188,-388.97,0.00018914,2]
[360741028,1746961832198,-388.97,0.00018919,2]
[360741029,1746961832207,-388.97,0.00018924,2]
[360741030,1746961832217,-547.2,0.00019,2]
[360741031,1746961832226,-547.2,0.00019,2]
[360741032,1746961832235,-547.2,0.00019,2]
[360741033,1746961832246,-547.2,0.00019,2]
[360741034,1746961832255,-300.0,0.00019,2]
[360741035,1746961832265,-150.0,0.00019,2]
[360741036,1746961832274,-150.0,0.00019,2]
[360741037,1746961832284,-150.0,0.00019,2]
[360741038,1746961832293,-151.0,0.00019178,2]
[360741039,1746961832302,-718.68,0.00019178,2]
[360741040,1746961832312,-2666.24303161,0.00019328,2]
[360741041,1746961832322,-150.99,0.00019339,2]
[360741042,1746961832331,-3802.23469792,0.00019339,2]
[360741043,1746961832343,-2781.97838578,0.00019339,2]
[360741044,1746961832355,-3415.7769163,0.00019339,2]
[360741045,1746961832365,-150.99,0.00019339,2]
[360741046,1746961832375,-4797.63,0.00019339,2]
[360741047,1746961832384,-999.99,0.00019339,2]
[360741048,1746961832395,-608.21,0.00019339,2]
[360741049,1746961832404,-1873.45,0.00019339,2]
[360741050,1746961832413,-1369.52,0.00019339,2]
[360741051,1746961832422,-163.55,0.00019395,2]
[360741052,1746961832432,-150.04,0.000194,2]
[360741053,1746961832442,-548.47975202,0.00019441,2]
[360741054,1746961832451,-1869.0,0.000196,2]
[360741055,1746961832461,-798.0,0.00019637,2]
[360741056,1746961832470,-150.0,0.00019726,2]
[360741057,1746961832479,-150.0,0.00019753,2]
[360741058,1746961832489,-3575.93018546,0.0001978,2]
[360741059,1746961832499,-888.40552738,0.0001978,2]
[360741060,1746961832509,-200.0,0.00019781,2]
[360741061,1746961832518,-161.46324959,0.00019781,2]
[360741062,1746961832530,-4635.03,0.00019781,2]
[360741063,1746961832540,-3741.4305,0.00019781,2]
[360741064,1746961832549,-8328.7795,0.00019781,2]
[360741065,1746961832558,-7881.9162,0.00019781,2]
[360741066,1746961832568,-941.699,0.00019782,2]
[360741067,1746961832578,-203.9586,0.00019782,2]
[360741068,1746961832587,-164.30038407,0.00019783,2]
[360741069,1746961832596,-159.59684998,0.00019784,2]
[360741070,1746961832606,-3575.93018538,0.00019793,2]
[360741071,1746961832615,-888.40552735,0.00019793,2]
[360741072,1746961832625,-152.38,0.000198,2]
[360741073,1746961832634,-267.81,0.000198,2]
[360741074,1746961832643,-307.63,0.000198,2]
[360741075,1746961832652,-797.84,0.000198,2]
[360741076,1746961832661,-352.08,0.000198,2]
[360741077,1746961832670,-3575.93018538,0.00019806,2]
[360741078,1746961832680,-888.40552735,0.00019806,2]
[360741079,1746961832690,-159.59684998,0.00019813,2]
[360741080,1746961832701,-6813.0,0.00019819,2]
[360741081,1746961832710,-4045.088,0.00019819,2]
[360741082,1746961832720,-153.0,0.00019819,2]
[360741083,1746961832730,-3575.93018538,0.0001982,2]
[360741084,1746961832740,-888.40552735,0.0001982,2]
[360741085,1746961832750,-161.46324957,0.00019821,2]
[360741086,1746961832759,-200.0,0.00019827,2]
[360741087,1746961832769,-3575.93018538,0.00019833,2]
[360741088,1746961832779,-888.40552735,0.00019833,2]
[360741089,1746961832789,-164.30038405,0.00019842,2]
[360741090,1746961832799,-159.59684998,0.00019842,2]
[360741091,1746961832810,-3575.93018538,0.00019846,2]
[360741092,1746961832820,-888.40552735,0.00019846,2]
[360741093,1746961832831,-474.54670138,0.00019855,5]
[360741094,1746961832843,-23835.05524527,0.00019855,5]
[360741095,1746961832852,-3575.93018538,0.00019859,2]
[360741096,1746961832861,-888.40552735,0.00019859,2]
[360741097,1746961832870,-161.46324957,0.0001986,2]
[360741098,1746961832879,-160.14,0.0001987,2]
[360741099,1746961832888,-256.47,0.0001987,2]
[360741100,1746961832897,-159.59684998,0.00019871,2]
[360741101,1746961832907,-3575.93018538,0.00019873,2]
[360741102,1746961832916,-888.40552735,0.00019873,2]
[360741103,1746961832925,-500.0,0.00019873,2]
[360741104,1746961832934,-520.36551667,0.00019873,2]
[360741105,1746961832944,-500.0,0.00019873,2]
[360741106,1746961832953,-3306.8703643,0.00019877,2]
[360741107,1746961832962,-435.94864659,0.0001988,2]
[360741108,1746961832971,-466.38441415,0.0001988,2]
[360741109,1746961832981,-400.0,0.0001988,2]
[360741110,1746961832990,-400.0,0.0001988,2]
[360741111,1746961833000,-995.08,0.0001988,2]
[360741112,1746961833010,-400.0,0.0001988,2]
[360741113,1746961833020,-400.0,0.0001988,2]
[360741114,1746961833029,-400.0,0.0001988,2]
[360741115,1746961833038,-400.0,0.0001988,2]
[360741116,1746961833048,-500.0,0.0001988,2]
[360741117,1746961833057,-573.32,0.0001988,2]
[360741118,1746961833067,-400.0,0.0001988,2]
[360741119,1746961833076,-400.0,0.0001988,2]
[360741120,1746961833085,-400.0,0.0001988,2]
[360741121,1746961833095,-400.0,0.0001988,2]
[360741122,1746961833104,-400.0,0.0001988,2]
[360741123,1746961833113,-400.0,0.0001988,2]
[360741124,1746961833122,-400.0,0.0001988,2]
[360741125,1746961833131,-580.11,0.0001988,2]
[360741126,1746961833140,-400.0,0.0001988,2]
[360741127,1746961833150,-400.0,0.0001988,2]
[360741128,1746961833158,-400.0,0.0001988,2]
[360741129,1746961833168,-400.0,0.0001988,2]
[360741130,1746961833177,-400.0,0.0001988,2]
[360741131,1746961833186,-400.0,0.0001988,2]
[360741132,1746961833195,-400.0,0.0001988,2]
[360741133,1746961833206,-400.0,0.0001988,2]
[360741134,1746961833217,-400.0,0.0001988,2]
[360741135,1746961833228,-400.0,0.0001988,2]
[360741136,1746961833237,-203.15349097,0.0001988,2]
[360741137,1746961833247,-400.0,0.0001988,2]
[360741138,1746961833256,-337.68354522,0.0001988,2]
[360741139,1746961833265,-400.0,0.0001988,2]
[360741140,1746961833274,-400.0,0.0001988,2]
[360741141,1746961833283,-161.983584,0.0001988,2]
[360741142,1746961833292,-1512.64,0.0001988,2]
[360741143,1746961833301,-635.951319,0.0001988,2]
[360741144,1746961833310,-400.0,0.0001988,2]
[360741145,1746961833320,-500.0,0.0001988,2]
[360741146,1746961833330,-400.0,0.0001988,2]
[360741147,1746961833340,-400.0,0.0001988,2]
[360741148,1746961833349,-400.0,0.0001988,2]
[360741149,1746961833359,-184.0877849,0.0001988,2]
[360741150,1746961833368,-163.399618,0.0001988,2]
[360741151,1746961833378,-1379.31,0.0001988,2]
[360741152,1746961833387,-1083.61,0.0001988,2]
[360741153,1746961833397,-400.0,0.0001988,2]
[360741154,1746961833406,-400.0,0.0001988,2]
[360741155,1746961833416,-353.688751,0.0001988,2]
[360741156,1746961833425,-162.86901668,0.0001988,2]
[360741157,1746961833435,-400.0,0.0001988,2]
[360741158,1746961833444,-530.88656438,0.0001988,2]
[360741159,1746961833453,-400.0,0.0001988,2]
[360741160,1746961833463,-400.0,0.0001988,2]
[360741161,1746961833472,-400.0,0.0001988,2]
[360741162,1746961833481,-347.04305301,0.0001988,2]
[360741163,1746961833490,-450.0,0.0001988,2]
[360741164,1746961833500,-400.0,0.0001988,2]
[360741165,1746961833510,-400.0,0.0001988,2]
[360741166,1746961833520,-400.0,0.0001988,2]
[360741167,1746961833534,-400.0,0.0001988,2]
[360741168,1746961833544,-400.0,0.0001988,2]
[360741169,1746961833553,-231.48319388,0.0001988,2]
[360741170,1746961833563,-400.0,0.0001988,2]
[360741171,1746961833574,-400.0,0.0001988,2]
[360741172,1746961833584,-321.2075855,0.0001988,2]
[360741173,1746961833593,-425.2,0.0001988,2]
[360741174,1746961833603,-283.89071847,0.0001988,2]
[360741175,1746961833613,-366.70350216,0.0001988,2]
[360741176,1746961833644,-33.29649784,0.0001988,2]
[360741177,1746961833653,-310.49906139,0.0001988,2]
[360741178,1746961833674,-89.50093861,0.0001988,2]
[360741179,1746961833684,-476.0387701,0.0001988,2]
[360741180,1746961833693,-400.0,0.0001988,2]
[360741181,1746961833703,-400.0,0.0001988,2]
[360741182,1746961833712,-458.36355577,0.0001988,2]
[360741183,1746961833722,-400.0,0.0001988,2]
[360741184,1746961833731,-400.0,0.0001988,2]
[360741185,1746961833740,-400.0,0.0001988,2]
[360741186,1746961833751,-400.0,0.0001988,2]
[360741187,1746961833760,-400.0,0.0001988,2]
[360741188,1746961833769,-400.0,0.0001988,2]
[360741189,1746961833779,-254.05835253,0.0001988,2]
[360741190,1746961833788,-400.0,0.0001988,2]
[360741191,1746961833798,-400.0,0.0001988,2]
[360741192,1746961833807,-214.10967008,0.0001988,2]
[360741193,1746961833817,-400.0,0.0001988,2]
[360741194,1746961833826,-400.0,0.0001988,2]
[360741195,1746961833836,-400.0,0.0001988,2]
[360741196,1746961833845,-400.0,0.0001988,2]
[360741197,1746961833854,-400.0,0.0001988,2]
[360741198,1746961833864,-400.0,0.0001988,2]
[360741199,1746961833875,-400.0,0.0001988,2]
[360741200,1746961833884,-400.0,0.0001988,2]
[360741201,1746961833894,-276.23574554,0.0001988,2]
[360741202,1746961833903,-400.0,0.0001988,2]
[360741203,1746961833913,-400.0,0.0001988,2]
[360741204,1746961833922,-400.0,0.0001988,2]
[360741205,1746961833932,-400.0,0.0001988,2]
[360741206,1746961833941,-400.0,0.0001988,2]
[360741207,1746961833951,-445.1,0.0001988,2]
[360741208,1746961833960,-400.0,0.0001988,2]
[360741209,1746961833969,-400.0,0.0001988,2]
[360741210,1746961833979,-400.0,0.0001988,2]
[360741211,1746961833988,-400.0,0.0001988,2]
[360741212,1746961833998,-400.0,0.0001988,2]
[360741213,1746961834007,-400.0,0.0001988,2]
[360741214,1746961834017,-400.0,0.0001988,2]
[360741215,1746961834027,-400.0,0.0001988,2]
[360741216,1746961834036,-400.0,0.0001988,2]
[360741217,1746961834045,-547.71202073,0.0001988,2]
[360741218,1746961834055,-400.0,0.0001988,2]
[360741219,1746961834064,-500.0,0.0001988,2]
[360741220,1746961834074,-400.0,0.0001988,2]
[360741221,1746961834084,-500.0,0.0001988,2]
[360741222,1746961834093,-400.0,0.0001988,2]
[360741223,1746961834103,-1014.23419445,0.0001988,2]
[360741224,1746961834113,-400.0,0.0001988,2]
[360741225,1746961834122,-400.0,0.0001988,2]
[360741226,1746961834131,-400.0,0.0001988,2]
[360741227,1746961834141,-183.48644816,0.0001988,2]
[360741228,1746961834151,-494.03317155,0.0001988,2]
[360741229,1746961834160,-195.21337276,0.0001988,2]
[360741230,1746961834170,-400.0,0.0001988,2]
[360741231,1746961834179,-400.0,0.0001988,2]
[360741232,1746961834189,-400.0,0.0001988,2]
[360741233,1746961834198,-400.0,0.0001988,2]
[360741234,1746961834208,-400.0,0.0001988,2]
[360741235,1746961834217,-400.0,0.0001988,2]
[360741236,1746961834227,-400.0,0.0001988,2]
[360741237,1746961834236,-400.0,0.0001988,2]
[360741238,1746961834246,-400.0,0.0001988,2]
[360741239,1746961834255,-400.0,0.0001988,2]
[360741240,1746961834265,-400.0,0.0001988,2]
[360741241,1746961834275,-500.0,0.0001988,2]
[360741242,1746961834284,-400.0,0.0001988,2]
[360741243,1746961834294,-400.0,0.0001988,2]
[360741244,1746961834304,-400.0,0.0001988,2]
[360741245,1746961834315,-400.0,0.0001988,2]
[360741246,1746961834324,-400.0,0.0001988,2]
[360741247,1746961834334,-400.0,0.0001988,2]
[360741248,1746961834344,-400.0,0.0001988,2]
[360741249,1746961834354,-600.0,0.0001988,2]
[360741250,1746961834364,-400.0,0.0001988,2]
[360741251,1746961834374,-400.0,0.0001988,2]
[360741252,1746961834384,-400.0,0.0001988,2]
[360741253,1746961834394,-553.28,0.0001988,2]
[360741254,1746961834403,-400.0,0.0001988,2]
[360741255,1746961834413,-400.0,0.0001988,2]
[360741256,1746961834422,-400.0,0.0001988,2]
[360741257,1746961834431,-400.0,0.0001988,2]
[360741258,1746961834440,-400.0,0.0001988,2]
[360741259,1746961834450,-470.0,0.0001988,2]
[360741260,1746961834459,-400.0,0.0001988,2]
[360741261,1746961834468,-400.0,0.0001988,2]
[360741262,1746961834477,-453.81786962,0.0001988,2]
[360741263,1746961834488,-400.0,0.0001988,2]
[360741264,1746961834498,-400.0,0.0001988,2]
[360741265,1746961834507,-400.0,0.0001988,2]
[360741266,1746961834518,-400.0,0.0001988,2]
[360741267,1746961834530,-400.0,0.0001988,2]
[360741268,1746961834540,-437.54914359,0.0001988,2]
[360741269,1746961834549,-400.0,0.0001988,2]
[360741270,1746961834559,-400.0,0.0001988,2]
[360741271,1746961834570,-400.0,0.0001988,2]
[360741272,1746961834579,-400.0,0.0001988,2]
[360741273,1746961834589,-384.12,0.0001988,2]
[360741274,1746961834599,-400.0,0.0001988,2]
[360741275,1746961834608,-400.0,0.0001988,2]
[360741276,1746961834617,-400.0,0.0001988,2]
[360741277,1746961834627,-400.0,0.0001988,2]
[360741278,1746961834636,-1383.48,0.0001988,2]
[360741279,1746961834644,-400.0,0.0001988,2]
[360741280,1746961834654,-436.77328701,0.0001988,2]
[360741281,1746961834663,-1769.36,0.0001988,2]
[360741282,1746961834672,-400.0,0.0001988,2]
[360741283,1746961834681,-400.0,0.0001988,2]
[360741284,1746961834691,-470.0,0.0001988,2]
[360741285,1746961834700,-470.0,0.0001988,2]
[360741286,1746961834709,-400.0,0.0001988,2]
[360741287,1746961834718,-400.0,0.0001988,2]
[360741288,1746961834727,-500.0,0.0001988,2]
[360741289,1746961834736,-400.0,0.0001988,2]
[360741290,1746961834745,-247.48185396,0.0001988,2]
[360741291,1746961834755,-400.0,0.0001988,2]
[360741292,1746961834764,-400.0,0.0001988,2]
[360741293,1746961834773,-400.0,0.0001988,2]
[360741294,1746961834782,-400.0,0.0001988,2]
[360741295,1746961834791,-500.0,0.0001988,2]
[360741296,1746961834800,-400.0,0.0001988,2]
[360741297,1746961834809,-420.85,0.0001988,2]
[360741298,1746961834818,-400.0,0.0001988,2]
[360741299,1746961834827,-1000.0,0.0001988,2]
[360741300,1746961834835,-400.0,0.0001988,2]
[360741301,1746961834844,-500.0,0.0001988,2]
[360741302,1746961834853,-400.0,0.0001988,2]
[360741303,1746961834862,-4755.36,0.0001988,2]
[360741304,1746961834871,-400.0,0.0001988,2]
[360741305,1746961834880,-400.0,0.0001988,2]
[360741306,1746961834889,-400.0,0.0001988,2]
[360741307,1746961834898,-400.0,0.0001988,2]
[360741308,1746961834907,-400.0,0.0001988,2]
[360741309,1746961834917,-400.0,0.0001988,2]
[360741310,1746961834926,-400.0,0.0001988,2]
[360741311,1746961834935,-400.0,0.0001988,2]
[360741312,1746961834944,-400.0,0.0001988,2]
[360741313,1746961834953,-400.0,0.0001988,2]
[360741314,1746961834962,-400.0,0.0001988,2]
[360741315,1746961834971,-400.0,0.0001988,2]
[360741316,1746961834980,-445.48385582,0.0001988,2]
[360741317,1746961834989,-400.0,0.0001988,2]
[360741318,1746961834998,-390.98180446,0.0001988,2]
[360741319,1746961835007,-400.0,0.0001988,2]
[360741320,1746961835016,-519.42,0.0001988,2]
[360741321,1746961835025,-170.56425577,0.0001988,2]
[360741322,1746961835034,-400.0,0.0001988,2]
[360741323,1746961835043,-7433.52,0.0001988,2]
[360741324,1746961835052,-400.0,0.0001988,2]
[360741325,1746961835060,-400.0,0.0001988,2]
[360741326,1746961835069,-309.98315375,0.0001988,2]
[360741327,1746961835078,-400.0,0.0001988,2]
[360741328,1746961835087,-450.0,0.0001988,2]
[360741329,1746961835096,-1233.5365722,0.0001988,2]
[360741330,1746961835347,-2957.4534278,0.0001988,2]
[360741331,1746961835357,-349.66468251,0.0001988,2]
[360741332,1746961835366,-400.0,0.0001988,2]
[360741333,1746961835375,-400.0,0.0001988,2]
[360741334,1746961835384,-400.0,0.0001988,2]
[360741335,1746961835393,-400.0,0.0001988,2]
[360741336,1746961835402,-400.0,0.0001988,2]
[360741337,1746961835411,-400.0,0.0001988,2]
[360741338,1746961835420,-400.0,0.0001988,2]
[360741339,1746961835429,-9557.3,0.0001988,2]
[360741340,1746961835439,-400.0,0.0001988,2]
[360741341,1746961835450,-400.0,0.0001988,2]
[360741342,1746961835459,-400.0,0.0001988,2]
[360741343,1746961835468,-400.0,0.0001988,2]
[360741344,1746961835477,-400.0,0.0001988,2]
[360741345,1746961835487,-400.0,0.0001988,2]
[360741346,1746961835496,-400.0,0.0001988,2]
[360741347,1746961835505,-400.0,0.0001988,2]
[360741348,1746961835515,-400.0,0.0001988,2]
[360741349,1746961835525,-400.0,0.0001988,2]
[360741350,1746961835535,-400.0,0.0001988,2]
[360741351,1746961835546,-537.04,0.0001988,2]
[360741352,1746961835555,-400.0,0.0001988,2]
[360741353,1746961835563,-1674.78,0.0001988,2]
[360741354,1746961835574,-287.31680264,0.0001988,2]
[360741355,1746961835584,-450.0,0.0001988,2]
[360741356,1746961835593,-400.0,0.0001988,2]
[360741357,1746961835604,-400.0,0.0001988,2]
[360741358,1746961835807,-4637.1,0.0001988,2]
[360741359,1746961835818,-400.0,0.0001988,2]
[360741360,1746961835828,-400.0,0.0001988,2]
[360741361,1746961835837,-2572.58,0.0001988,2]
[360741362,1746961835846,-400.0,0.0001988,2]
[360741363,1746961835855,-400.0,0.0001988,2]
[360741364,1746961835865,-400.0,0.0001988,2]
[360741365,1746961835873,-400.0,0.0001988,2]
[360741366,1746961835883,-132.74951344,0.0001988,2]
[360741367,1746961835899,-383.03048656,0.0001988,2]
[360741368,1746961835908,-400.0,0.0001988,2]
[360741369,1746961835916,-253.07951344,0.0001988,2]
[360741370,1746961835940,-146.92048656,0.0001988,2]
[360741371,1746961835950,-400.0,0.0001988,2]
[360741372,1746961835958,-205.68174774,0.0001988,2]
[360741376,1746961837594,-438.76,0.00019819,2]
[360741377,1746961837605,-500.0,0.00019869,2]
[360741378,1746961837616,-33.1998939,0.00019869,2]
[360741379,1746961837628,-466.8001061,0.00019869,2]
[360741380,1746961837639,-303.43967929,0.00019869,2]
[360741381,1746961837650,-194.31825226,0.0001988,2]
[360741382,1746961837660,-400.0,0.0001988,2]
[360741383,1746961837671,-409.35507235,0.0001988,2]
[360741384,1746961837681,-400.0,0.0001988,2]
[360741385,1746961837690,-401.05,0.0001988,2]
[360741386,1746961837699,-400.0,0.0001988,2]
[360741387,1746961837709,-400.0,0.0001988,2]
[360741388,1746961837719,-400.0,0.0001988,2]
[360741389,1746961837734,-400.0,0.0001988,2]
[360741390,1746961837744,-400.0,0.0001988,2]
[360741391,1746961837754,-400.0,0.0001988,2]
[360741392,1746961837763,-400.0,0.0001988,2]
[360741393,1746961837773,-400.0,0.0001988,2]
[360741394,1746961837783,-400.0,0.0001988,2]
[360741395,1746961837793,-400.0,0.0001988,2]
[360741396,1746961837802,-400.0,0.0001988,2]
[360741397,1746961837812,-228.94555974,0.0001988,2]
[360741398,1746961837826,-171.05444026,0.0001988,2]
[360741399,1746961837838,-400.0,0.0001988,2]
[360741400,1746961837848,-400.0,0.0001988,2]
[360741401,1746961837858,-58.17301853,0.0001988,2]
[360741402,1746961837882,-341.82698147,0.0001988,2]
[360741403,1746961837892,-98.41748426,0.0001988,2]
[360741404,1746961837908,-301.58251574,0.0001988,2]
[360741406,1746961837918,-400.0,0.0001988,2]
[360741407,1746961837927,-913.48,0.0001988,2]
[360741409,1746961837936,-400.0,0.0001988,2]
[360741411,1746961837945,-400.0,0.0001988,2]
[360741413,1746961837955,-400.0,0.0001988,2]
[360741415,1746961837964,-400.0,0.0001988,2]
[360741417,1746961837973,-400.0,0.0001988,2]
[360741419,1746961837983,-400.0,0.0001988,2]
[360741421,1746961837992,-400.0,0.0001988,2]
[360741423,1746961838001,-400.0,0.0001988,2]
[360741425,1746961838010,-400.0,0.0001988,2]
[360741427,1746961838019,-12729.89,0.0001988,2]
[360741429,1746961838028,-400.0,0.0001988,2]
[360741431,1746961838038,-400.0,0.0001988,2]
[360741433,1746961838047,-400.0,0.0001988,2]
[360741435,1746961838056,-400.0,0.0001988,2]
[360741437,1746961838066,-400.0,0.0001988,2]
[360741439,1746961838075,-400.0,0.0001988,2]
[360741441,1746961838084,-505.88683209,0.0001988,2]
[360741443,1746961838093,-400.0,0.0001988,2]
[360741445,1746961838101,-400.0,0.0001988,2]
[360741447,1746961838111,-400.0,0.0001988,2]
[360741449,1746961838121,-400.0,0.0001988,2]
[360741451,1746961838131,-495.96129125,0.0001988,2]
[360741453,1746961838140,-1832.57,0.0001988,2]
[360741455,1746961838150,-400.0,0.0001988,2]
[360741457,1746961838159,-400.0,0.0001988,2]